[Event "***Titled Tuesday 3|2 Blitz"]
[Site "Chess.com"]
[Date "2017.02.07"]
[Round "3"]
[White "MFBerna"]
[Black "JeremDev"]
[Result "1-0"]
[WhiteElo "2255"]
[BlackElo "2106"]
[TimeControl "180+2"]
[EndTime "13:42:48 PST"]
[Termination "MFBerna won on time"]

1. e4 {[%clk 0:03:02]} 1... c5 {[%clk 0:03:00.4]} 2. Nf3 {[%clk 0:03:00.7]} 2...
d6 {[%clk 0:03:01.1]} 3. d4 {[%clk 0:03:00.5]} 3... cxd4 {[%clk 0:03:03]} 4.
Nxd4 {[%clk 0:03:02.4]} 4... Nf6 {[%clk 0:03:04.5]} 5. Nc3 {[%clk 0:03:02]} 5...
g6 {[%clk 0:03:05.6]} 6. Be2 {[%clk 0:03:00.5]} 6... Bg7 {[%clk 0:03:06.7]} 7.
O-O {[%clk 0:03:01.7]} 7... O-O {[%clk 0:03:08.3]} 8. Be3 {[%clk 0:02:58.1]}
8... Nc6 {[%clk 0:03:09.3]} 9. Nb3 {[%clk 0:02:56.9]} 9... Be6 {[%clk
0:03:09.6]} 10. f4 {[%clk 0:02:57.1]} 10... Rc8 {[%clk 0:03:09.6]} 11. Bf3
{[%clk 0:02:53.8]} 11... a6 {[%clk 0:02:57.1]} 12. a4 {[%clk 0:02:53.7]} 12...
Na5 {[%clk 0:02:52.5]} 13. e5 {[%clk 0:02:45.5]} 13... Ne8 {[%clk 0:02:18.4]}
14. exd6 {[%clk 0:02:24.2]} 14... Nxd6 {[%clk 0:02:15.6]} 15. Nc5 {[%clk
0:02:23.1]} 15... Bd7 {[%clk 0:01:33]} 16. Nd5 {[%clk 0:02:19.3]} 16... Nac4
{[%clk 0:01:21.4]} 17. Bf2 {[%clk 0:02:15.2]} 17... Nxb2 {[%clk 0:01:17.4]} 18.
Qe2 {[%clk 0:02:11.7]} 18... Bc6 {[%clk 0:01:10.1]} 19. Nxe7+ {[%clk 0:02:11.6]}
19... Kh8 {[%clk 0:01:09.7]} 20. Bxc6 {[%clk 0:02:11.2]} 20... Rxc6 {[%clk
0:01:03.4]} 21. Nxc6 {[%clk 0:02:12.1]} 21... bxc6 {[%clk 0:01:05.3]} 22. Qxa6
{[%clk 0:02:01.7]} 22... Nbc4 {[%clk 0:00:56.3]} 23. Rad1 {[%clk 0:02:01.3]}
23... Qe8 {[%clk 0:00:47.3]} 24. Rfe1 {[%clk 0:01:55]} 24... Qa8 {[%clk
0:00:43.5]} 25. Qxa8 {[%clk 0:01:55]} 25... Rxa8 {[%clk 0:00:45.4]} 26. Bd4
{[%clk 0:01:14]} 26... Nf5 {[%clk 0:00:38.8]} 27. Bxg7+ {[%clk 0:01:05.6]} 27...
Kxg7 {[%clk 0:00:40.7]} 28. Rd7 {[%clk 0:01:02.7]} 28... h5 {[%clk 0:00:38.6]}
29. Ra1 {[%clk 0:00:57.3]} 29... Nce3 {[%clk 0:00:33.7]} 30. a5 {[%clk 0:00:50]}
30... Nxc2 {[%clk 0:00:33.4]} 31. Ra4 {[%clk 0:00:50.6]} 31... Nce3 {[%clk
0:00:16.3]} 32. a6 {[%clk 0:00:51.2]} 32... Rb8 {[%clk 0:00:17.5]} 33. Ra2
{[%clk 0:00:34.6]} 33... Rb1+ {[%clk 0:00:16.7]} 34. Kf2 {[%clk 0:00:35]} 34...
Ng4+ {[%clk 0:00:17.8]} 35. Ke2 {[%clk 0:00:30.9]} 35... Rg1 {[%clk 0:00:18.5]}
36. Kd3 {[%clk 0:00:25.8]} 36... Rd1+ {[%clk 0:00:07.7]} 37. Kc3 {[%clk
0:00:27]} 37... Rc1+ {[%clk 0:00:07.9]} 38. Kb4 {[%clk 0:00:28]} 38... Nge3
{[%clk 0:00:06.4]} 39. a7 {[%clk 0:00:26.1]} 39... Rb1+ {[%clk 0:00:05.1]} 40.
Ka4 {[%clk 0:00:22.6]} 40... Nc4 {[%clk 0:00:03.5]} 41. Rb7 {[%clk 0:00:17.3]}
1-0

[Event "***Titled Tuesday 3|2 Blitz"]
[Site "Chess.com"]
[Date "2017.02.07"]
[Round "3"]
[White "Dale"]
[Black "silverback96"]
[Result "1-0"]
[WhiteElo "1979"]
[BlackElo "2066"]
[TimeControl "180+2"]
[EndTime "13:42:53 PST"]
[Termination "Dale won on time"]

1. e4 {[%clk 0:03:02]} 1... g6 {[%clk 0:03:01.8]} 2. d4 {[%clk 0:03:01.3]} 2...
Bg7 {[%clk 0:02:58.3]} 3. h4 {[%clk 0:03:02]} 3... d6 {[%clk 0:03:00.2]} 4. h5
{[%clk 0:03:02.9]} 4... a6 {[%clk 0:03:00]} 5. h6 {[%clk 0:03:04]} 5... Bf8
{[%clk 0:03:01.2]} 6. Nf3 {[%clk 0:03:03.6]} 6... b5 {[%clk 0:02:54.9]} 7. a4
{[%clk 0:03:03.4]} 7... Bb7 {[%clk 0:02:49.4]} 8. axb5 {[%clk 0:03:03.3]} 8...
Bxe4 {[%clk 0:02:49.9]} 9. Nc3 {[%clk 0:03:04.4]} 9... Bb7 {[%clk 0:02:43.5]}
10. Bg5 {[%clk 0:02:53.5]} 10... Qd7 {[%clk 0:02:33.9]} 11. d5 {[%clk
0:02:47.7]} 11... Qg4 {[%clk 0:02:12.1]} 12. Rh4 {[%clk 0:02:45.2]} 12... Qc8
{[%clk 0:02:03.1]} 13. Qd4 {[%clk 0:02:44]} 13... f6 {[%clk 0:01:58]} 14. Re4
{[%clk 0:02:37.4]} 14... Nd7 {[%clk 0:01:42.2]} 15. bxa6 {[%clk 0:02:33.3]}
15... Bxa6 {[%clk 0:01:44.1]} 16. Bxa6 {[%clk 0:02:25.4]} 16... Rxa6 {[%clk
0:01:46]} 17. Rxa6 {[%clk 0:02:20.9]} 17... Qxa6 {[%clk 0:01:47.9]} 18. Re6
{[%clk 0:02:10.8]} 18... Qa1+ {[%clk 0:01:28.6]} 19. Nd1 {[%clk 0:02:07.4]}
19... Ne5 {[%clk 0:01:17]} 20. Bf4 {[%clk 0:01:52.2]} 20... Bxh6 {[%clk
0:01:03.9]} 21. Bxe5 {[%clk 0:01:38.7]} 21... fxe5 {[%clk 0:01:04.4]} 22. Qc4
{[%clk 0:01:30.8]} 22... Qa5+ {[%clk 0:00:58.7]} 23. b4 {[%clk 0:01:28.4]} 23...
Qb6 {[%clk 0:00:59.4]} 24. Qh4 {[%clk 0:01:22.5]} 24... Bf4 {[%clk 0:00:52]} 25.
c3 {[%clk 0:01:15]} 25... Qb5 {[%clk 0:00:38.2]} 26. g3 {[%clk 0:01:14]} 26...
Qxd5 {[%clk 0:00:33.1]} 27. Rxg6 {[%clk 0:01:10.9]} 27... Qe4+ {[%clk
0:00:27.7]} 28. Ne3 {[%clk 0:01:06.2]} 28... Qxg6 {[%clk 0:00:27.2]} 29. gxf4
{[%clk 0:01:06.4]} 29... exf4 {[%clk 0:00:29.1]} 30. Qxf4 {[%clk 0:01:06.7]}
30... Nf6 {[%clk 0:00:30.8]} 31. Qc4 {[%clk 0:01:06.3]} 31... Qb1+ {[%clk
0:00:29.5]} 32. Ke2 {[%clk 0:01:06.4]} 32... Qb2+ {[%clk 0:00:29.3]} 33. Ke1
{[%clk 0:01:05.7]} 33... Qb1+ {[%clk 0:00:24.2]} 34. Ke2 {[%clk 0:01:06.5]}
34... Ne4 {[%clk 0:00:15.9]} 35. Qc6+ {[%clk 0:01:01.7]} 35... Kf8 {[%clk
0:00:14.8]} 36. Nd4 {[%clk 0:00:59.5]} 36... Qb2+ {[%clk 0:00:10.8]} 37. Kd3
{[%clk 0:00:47.4]} 37... Nxf2+ {[%clk 0:00:10.4]} 38. Kc4 {[%clk 0:00:48.6]}
38... Qa2+ {[%clk 0:00:08.4]} 39. Kb5 {[%clk 0:00:39.5]} 39... Nd3 {[%clk
0:00:02.9]} 40. Ne6+ {[%clk 0:00:34.8]} 40... Kf7 {[%clk 0:00:03.8]} 41. Ng5+
{[%clk 0:00:31.2]} 41... Kf8 {[%clk 0:00:03.1]} 42. Qf3+ {[%clk 0:00:28.1]} 1-0

[Event "***Titled Tuesday 3|2 Blitz"]
[Site "Chess.com"]
[Date "2017.02.07"]
[Round "3"]
[White "Feegus"]
[Black "DrVelja"]
[Result "0-1"]
[WhiteElo "2358"]
[BlackElo "2520"]
[TimeControl "180+2"]
[EndTime "13:42:54 PST"]
[Termination "DrVelja won by checkmate"]

1. d4 {[%clk 0:02:59.9]} 1... Nf6 {[%clk 0:02:59.6]} 2. Bf4 {[%clk 0:02:58.8]}
2... g6 {[%clk 0:02:58.4]} 3. e3 {[%clk 0:02:59.4]} 3... Bg7 {[%clk 0:02:59.1]}
4. h3 {[%clk 0:03:00.7]} 4... O-O {[%clk 0:02:58.8]} 5. Nf3 {[%clk 0:03:01.8]}
5... c5 {[%clk 0:02:55.5]} 6. c3 {[%clk 0:03:02.7]} 6... d6 {[%clk 0:02:54.4]}
7. Nbd2 {[%clk 0:03:03.5]} 7... Nc6 {[%clk 0:02:54.7]} 8. Be2 {[%clk 0:03:04.6]}
8... cxd4 {[%clk 0:02:55.2]} 9. exd4 {[%clk 0:03:03.8]} 9... e5 {[%clk
0:02:56.4]} 10. dxe5 {[%clk 0:02:51.8]} 10... dxe5 {[%clk 0:02:55.9]} 11. Nxe5
{[%clk 0:02:53.4]} 11... Nd5 {[%clk 0:02:55.3]} 12. Nxc6 {[%clk 0:02:49.8]}
12... bxc6 {[%clk 0:02:57.2]} 13. Bg3 {[%clk 0:02:50.5]} 13... Re8 {[%clk
0:02:52.8]} 14. O-O {[%clk 0:02:45.5]} 14... Bxc3 {[%clk 0:02:53.7]} 15. Nc4
{[%clk 0:02:16.3]} 15... Bxb2 {[%clk 0:02:06.7]} 16. Nxb2 {[%clk 0:02:16.2]}
16... Nc3 {[%clk 0:02:07.1]} 17. Qxd8 {[%clk 0:02:16.7]} 17... Nxe2+ {[%clk
0:02:08.2]} 18. Kh2 {[%clk 0:02:10.7]} 18... Rxd8 {[%clk 0:02:08.3]} 19. Bh4
{[%clk 0:02:09.8]} 19... Rd4 {[%clk 0:01:49.9]} 20. Bf6 {[%clk 0:01:28]} 20...
Rd6 {[%clk 0:01:50]} 21. Bh4 {[%clk 0:01:14.7]} 21... Ba6 {[%clk 0:01:38.8]} 22.
Rfd1 {[%clk 0:01:10.9]} 22... Rd5 {[%clk 0:01:35.2]} 23. Na4 {[%clk 0:00:52.9]}
23... Bb5 {[%clk 0:01:22.3]} 24. Rxd5 {[%clk 0:00:44.8]} 24... cxd5 {[%clk
0:01:21.8]} 25. Nc5 {[%clk 0:00:45.7]} 25... Rc8 {[%clk 0:01:22.2]} 26. Nb3
{[%clk 0:00:32.2]} 26... d4 {[%clk 0:01:12.2]} 27. Bf6 {[%clk 0:00:25.9]} 27...
d3 {[%clk 0:01:12.1]} 28. a4 {[%clk 0:00:24]} 28... Bc4 {[%clk 0:01:06.9]} 29.
Nd4 {[%clk 0:00:23.9]} 29... Nxd4 {[%clk 0:01:05]} 30. Bxd4 {[%clk 0:00:24.7]}
30... Bb3 {[%clk 0:00:55.2]} 31. Be3 {[%clk 0:00:21.4]} 31... a6 {[%clk
0:00:21.5]} 32. a5 {[%clk 0:00:22.2]} 32... f5 {[%clk 0:00:19]} 33. Rc1 {[%clk
0:00:22.3]} 33... Re8 {[%clk 0:00:18.4]} 34. Bh6 {[%clk 0:00:07.9]} 34... Bc2
{[%clk 0:00:16.3]} 35. Ra1 {[%clk 0:00:06.2]} 35... Re2 {[%clk 0:00:17]} 36. Ra3
{[%clk 0:00:02.7]} 36... d2 {[%clk 0:00:17.7]} 37. Bxd2 {[%clk 0:00:03.5]} 37...
Rxd2 {[%clk 0:00:19.6]} 38. Rc3 {[%clk 0:00:04.8]} 38... Rxf2 {[%clk 0:00:17.7]}
39. Kg3 {[%clk 0:00:06.3]} 39... Rd2 {[%clk 0:00:18.1]} 40. Rc8+ {[%clk
0:00:07.5]} 40... Kg7 {[%clk 0:00:19.4]} 41. Rc7+ {[%clk 0:00:09.4]} 41... Kh6
{[%clk 0:00:20.8]} 42. Ra7 {[%clk 0:00:10.3]} 42... Be4 {[%clk 0:00:22.1]} 43.
Kh4 {[%clk 0:00:11.7]} 43... g5+ {[%clk 0:00:19]} 44. Kg3 {[%clk 0:00:11.2]}
44... Rxg2# {[%clk 0:00:19.2]} 0-1

[Event "***Titled Tuesday 3|2 Blitz"]
[Site "Chess.com"]
[Date "2017.02.07"]
[Round "3"]
[White "Carolina-moon"]
[Black "Jahonas"]
[Result "0-1"]
[WhiteElo "2034"]
[BlackElo "2136"]
[TimeControl "180+2"]
[EndTime "13:43:00 PST"]
[Termination "Jahonas won on time"]

1. c4 {[%clk 0:03:02]} 1... Nf6 {[%clk 0:03:00]} 2. Nc3 {[%clk 0:03:01.3]} 2...
g6 {[%clk 0:03:00.9]} 3. g3 {[%clk 0:03:01.6]} 3... Bg7 {[%clk 0:03:01.9]} 4.
Bg2 {[%clk 0:03:03]} 4... O-O {[%clk 0:03:02.7]} 5. e4 {[%clk 0:03:01.8]} 5...
e5 {[%clk 0:03:02.7]} 6. Nf3 {[%clk 0:02:57.7]} 6... Nc6 {[%clk 0:03:03.6]} 7.
O-O {[%clk 0:02:57]} 7... d6 {[%clk 0:03:04.3]} 8. d4 {[%clk 0:02:57]} 8... exd4
{[%clk 0:03:04.3]} 9. Nxd4 {[%clk 0:02:58.2]} 9... Bd7 {[%clk 0:03:04.9]} 10.
Re1 {[%clk 0:02:57.7]} 10... Re8 {[%clk 0:03:05.8]} 11. Nc2 {[%clk 0:02:46.2]}
11... h5 {[%clk 0:02:55.4]} 12. Bg5 {[%clk 0:02:45.3]} 12... Qc8 {[%clk
0:02:51.4]} 13. Qd2 {[%clk 0:02:35.5]} 13... Ne5 {[%clk 0:02:47.3]} 14. Bxf6
{[%clk 0:01:56.2]} 14... Bxf6 {[%clk 0:02:45.1]} 15. Nd5 {[%clk 0:01:57]} 15...
Bg7 {[%clk 0:02:43.9]} 16. Nce3 {[%clk 0:01:51.5]} 16... c6 {[%clk 0:02:32]} 17.
Nf4 {[%clk 0:01:45]} 17... Bf8 {[%clk 0:02:28.3]} 18. b3 {[%clk 0:01:42.2]}
18... Ng4 {[%clk 0:02:26.2]} 19. Rad1 {[%clk 0:01:38.3]} 19... Nxe3 {[%clk
0:02:26.6]} 20. Rxe3 {[%clk 0:01:34.7]} 20... Bg4 {[%clk 0:02:26.3]} 21. f3
{[%clk 0:01:31.4]} 21... Be6 {[%clk 0:02:25.8]} 22. Rd3 {[%clk 0:01:32]} 22...
Qc7 {[%clk 0:02:25.5]} 23. Nxe6 {[%clk 0:01:25.7]} 23... Rxe6 {[%clk 0:02:24.9]}
24. Bh3 {[%clk 0:01:26.4]} 24... Re5 {[%clk 0:02:24.1]} 25. Bg2 {[%clk
0:01:17.5]} 25... a5 {[%clk 0:02:21.1]} 26. f4 {[%clk 0:01:18.3]} 26... Ree8
{[%clk 0:02:18.8]} 27. a4 {[%clk 0:01:18.8]} 27... Qb6+ {[%clk 0:02:16.1]} 28.
Kh1 {[%clk 0:01:18.4]} 28... Qc5 {[%clk 0:02:16.5]} 29. Rxd6 {[%clk 0:00:58.2]}
29... Bxd6 {[%clk 0:02:16.3]} 30. Qxd6 {[%clk 0:00:59.9]} 30... Qxd6 {[%clk
0:02:17.2]} 31. Rxd6 {[%clk 0:01:01.5]} 31... Rad8 {[%clk 0:02:18.1]} 32. c5
{[%clk 0:00:59.6]} 32... Rxd6 {[%clk 0:02:17.9]} 33. cxd6 {[%clk 0:01:00.8]}
33... Rd8 {[%clk 0:02:17.6]} 34. e5 {[%clk 0:01:01.8]} 34... Kg7 {[%clk
0:02:08.1]} 35. Bf1 {[%clk 0:00:56.5]} 35... Rb8 {[%clk 0:01:44.4]} 36. Bg2
{[%clk 0:00:43.9]} 36... Kf8 {[%clk 0:01:42.2]} 37. Kg1 {[%clk 0:00:44.6]} 37...
Ke8 {[%clk 0:01:42.6]} 38. Kf2 {[%clk 0:00:46.1]} 38... Kd7 {[%clk 0:01:43.4]}
39. Bh3+ {[%clk 0:00:44.9]} 39... Kd8 {[%clk 0:01:41.3]} 40. Bg2 {[%clk
0:00:39.1]} 40... Kd7 {[%clk 0:01:41.2]} 41. Bh3+ {[%clk 0:00:38.9]} 41... f5
{[%clk 0:01:41.8]} 42. Bf1 {[%clk 0:00:17.2]} 42... b5 {[%clk 0:01:41.8]} 43.
Bd3 {[%clk 0:00:13.2]} 43... bxa4 {[%clk 0:01:40]} 44. bxa4 {[%clk 0:00:14.5]}
44... Rb4 {[%clk 0:01:37.5]} 45. Ke3 {[%clk 0:00:10.6]} 45... Rxa4 {[%clk
0:01:37.9]} 46. h3 {[%clk 0:00:11.9]} 46... Ra3 {[%clk 0:01:34.9]} 47. Kd4
{[%clk 0:00:09.4]} 47... a4 {[%clk 0:01:33.8]} 48. Bc4 {[%clk 0:00:06.9]} 48...
Rxg3 {[%clk 0:01:32.1]} 49. Kc5 {[%clk 0:00:08.2]} 49... Re3 {[%clk 0:00:58.6]}
50. e6+ {[%clk 0:00:09.4]} 50... Rxe6 {[%clk 0:00:58.8]} 51. Bxe6+ {[%clk
0:00:10.5]} 51... Kxe6 {[%clk 0:01:00.7]} 52. Kxc6 {[%clk 0:00:12]} 52... a3
{[%clk 0:01:02.1]} 53. d7 {[%clk 0:00:12.9]} 53... a2 {[%clk 0:01:03.5]} 54.
d8=Q {[%clk 0:00:13]} 54... a1=Q {[%clk 0:01:04.4]} 55. Qd5+ {[%clk 0:00:07.2]}
55... Kf6 {[%clk 0:00:56.5]} 56. Qd6+ {[%clk 0:00:05.9]} 56... Kf7 {[%clk
0:00:56.7]} 57. Qd5+ {[%clk 0:00:06.6]} 57... Kg7 {[%clk 0:00:54.6]} 0-1

[Event "***Titled Tuesday 3|2 Blitz"]
[Site "Chess.com"]
[Date "2017.02.07"]
[Round "3"]
[White "Ilja_Semjonovs"]
[Black "PelinGorki"]
[Result "0-1"]
[WhiteElo "2169"]
[BlackElo "2373"]
[TimeControl "180+2"]
[EndTime "13:43:43 PST"]
[Termination "PelinGorki won by resignation"]

1. d4 {[%clk 0:03:02]} 1... Nf6 {[%clk 0:03:00.7]} 2. Nf3 {[%clk 0:03:02.8]}
2... e6 {[%clk 0:03:00.4]} 3. Bg5 {[%clk 0:03:03.6]} 3... h6 {[%clk 0:02:59.9]}
4. Bxf6 {[%clk 0:03:03.5]} 4... Qxf6 {[%clk 0:03:00.3]} 5. e3 {[%clk 0:03:05.4]}
5... d5 {[%clk 0:02:55.4]} 6. Nbd2 {[%clk 0:03:03.2]} 6... c5 {[%clk 0:02:55.5]}
7. c3 {[%clk 0:03:03.6]} 7... Nc6 {[%clk 0:02:55.8]} 8. Bd3 {[%clk 0:03:00.5]}
8... Bd6 {[%clk 0:02:54.4]} 9. Qe2 {[%clk 0:02:56.7]} 9... O-O {[%clk
0:02:47.9]} 10. O-O {[%clk 0:02:46.3]} 10... a6 {[%clk 0:02:44]} 11. a3 {[%clk
0:02:31.7]} 11... b5 {[%clk 0:02:43.1]} 12. b4 {[%clk 0:02:31.8]} 12... c4
{[%clk 0:02:41.5]} 13. Bc2 {[%clk 0:02:32.2]} 13... a5 {[%clk 0:02:41.2]} 14. e4
{[%clk 0:02:33.1]} 14... Qe7 {[%clk 0:02:28.4]} 15. e5 {[%clk 0:01:52.3]} 15...
Bb8 {[%clk 0:02:28.2]} 16. h3 {[%clk 0:01:47.8]} 16... Bd7 {[%clk 0:02:24.9]}
17. Nh2 {[%clk 0:01:46.2]} 17... axb4 {[%clk 0:02:17.5]} 18. axb4 {[%clk
0:01:46.3]} 18... Bc7 {[%clk 0:02:17.1]} 19. f4 {[%clk 0:01:39.6]} 19... Bb6
{[%clk 0:02:12.4]} 20. Nhf3 {[%clk 0:01:30.1]} 20... Rfc8 {[%clk 0:02:07.6]} 21.
Kh1 {[%clk 0:01:27.1]} 21... Qd8 {[%clk 0:02:03]} 22. g4 {[%clk 0:01:21.6]}
22... Rxa1 {[%clk 0:01:57.9]} 23. Rxa1 {[%clk 0:01:20.6]} 23... Ra8 {[%clk
0:01:59.1]} 24. Rc1 {[%clk 0:00:52.4]} 24... Ra3 {[%clk 0:01:55.3]} 25. Bb1
{[%clk 0:00:50.2]} 25... Qa8 {[%clk 0:01:51.4]} 26. f5 {[%clk 0:00:49.6]} 26...
Qd8 {[%clk 0:01:26.6]} 27. Qd1 {[%clk 0:00:25.3]} 27... Qe7 {[%clk 0:01:19.3]}
28. Qc2 {[%clk 0:00:25.3]} 28... exf5 {[%clk 0:01:16.3]} 29. gxf5 {[%clk
0:00:25.5]} 29... f6 {[%clk 0:01:17.5]} 30. e6 {[%clk 0:00:20.7]} 30... Be8
{[%clk 0:01:18.1]} 31. Rg1 {[%clk 0:00:21.2]} 31... Bh5 {[%clk 0:01:03.1]} 32.
Qb2 {[%clk 0:00:16.9]} 32... Rb3 {[%clk 0:00:47.5]} 33. Qc1 {[%clk 0:00:09.3]}
33... Nxb4 {[%clk 0:00:36.6]} 34. Nh4 {[%clk 0:00:02.7]} 34... Nc6 {[%clk
0:00:29.6]} 35. Nxb3 {[%clk 0:00:02.8]} 35... cxb3 {[%clk 0:00:31.5]} 36. Qxh6
{[%clk 0:00:03.1]} 36... Be2 {[%clk 0:00:28.6]} 37. Qe3 {[%clk 0:00:03.2]} 37...
Bh5 {[%clk 0:00:22.2]} 38. Ng6 {[%clk 0:00:03.9]} 38... Bxg6 {[%clk 0:00:23.2]}
39. Rxg6 {[%clk 0:00:04.3]} 39... b4 {[%clk 0:00:22.1]} 40. h4 {[%clk
0:00:02.9]} 40... bxc3 {[%clk 0:00:21.4]} 41. Qxc3 {[%clk 0:00:04]} 41... Nxd4
{[%clk 0:00:23]} 42. Qc8+ {[%clk 0:00:04.4]} 42... Kh7 {[%clk 0:00:22.9]} 43.
Qd7 {[%clk 0:00:03.9]} 43... Qxd7 {[%clk 0:00:20.3]} 44. exd7 {[%clk 0:00:05]}
44... Kg8 {[%clk 0:00:22]} 45. Rg3 {[%clk 0:00:05.6]} 45... Kf7 {[%clk
0:00:21.1]} 46. Kg2 {[%clk 0:00:04.8]} 46... b2 {[%clk 0:00:14.3]} 47. h5 {[%clk
0:00:04.1]} 47... Bd8 {[%clk 0:00:13.4]} 48. Rd3 {[%clk 0:00:04.2]} 48... Nxf5
{[%clk 0:00:14.3]} 49. Rxd5 {[%clk 0:00:04.8]} 49... Ne3+ {[%clk 0:00:15.4]} 50.
Kf3 {[%clk 0:00:06.1]} 50... Nxd5 {[%clk 0:00:17.3]} 51. Ba2 {[%clk 0:00:07.1]}
51... Ke6 {[%clk 0:00:18.1]} 52. Ke4 {[%clk 0:00:08.3]} 52... Kd6 {[%clk
0:00:19.1]} 53. Kf5 {[%clk 0:00:06.1]} 53... Nc3 {[%clk 0:00:18.6]} 0-1

[Event "***Titled Tuesday 3|2 Blitz"]
[Site "Chess.com"]
[Date "2017.02.07"]
[Round "3"]
[White "Rozum_Ivan"]
[Black "gammagramma"]
[Result "0-1"]
[WhiteElo "2556"]
[BlackElo "2447"]
[TimeControl "180+2"]
[EndTime "13:44:09 PST"]
[Termination "gammagramma won by checkmate"]

1. e4 {[%clk 0:03:02]} 1... d5 {[%clk 0:03:00.6]} 2. exd5 {[%clk 0:03:01.3]}
2... Qxd5 {[%clk 0:03:02.5]} 3. Nc3 {[%clk 0:03:02.5]} 3... Qd8 {[%clk
0:03:02.8]} 4. d4 {[%clk 0:03:03.2]} 4... c6 {[%clk 0:03:03.5]} 5. Bc4 {[%clk
0:02:58]} 5... Bf5 {[%clk 0:03:02.9]} 6. g4 {[%clk 0:02:57.1]} 6... Bg6 {[%clk
0:03:01.9]} 7. f4 {[%clk 0:02:41.2]} 7... e6 {[%clk 0:03:01.1]} 8. h4 {[%clk
0:02:42.4]} 8... h5 {[%clk 0:02:57.7]} 9. f5 {[%clk 0:02:43.3]} 9... exf5 {[%clk
0:02:57.7]} 10. g5 {[%clk 0:02:44.8]} 10... Bb4 {[%clk 0:02:55.2]} 11. Ne2
{[%clk 0:02:44.3]} 11... Ne7 {[%clk 0:02:55.8]} 12. O-O {[%clk 0:02:44.4]} 12...
Nd7 {[%clk 0:02:50.3]} 13. Nf4 {[%clk 0:02:44]} 13... Nb6 {[%clk 0:02:49.1]} 14.
Bb3 {[%clk 0:02:43.7]} 14... Bxc3 {[%clk 0:02:32.2]} 15. bxc3 {[%clk 0:02:44.7]}
15... Nbd5 {[%clk 0:02:33.4]} 16. Bxd5 {[%clk 0:02:40]} 16... Nxd5 {[%clk
0:02:33.2]} 17. Re1+ {[%clk 0:02:41.1]} 17... Kf8 {[%clk 0:02:31.2]} 18. Nxd5
{[%clk 0:02:32.1]} 18... Qxd5 {[%clk 0:02:24.9]} 19. Re5 {[%clk 0:02:30.1]}
19... Qc4 {[%clk 0:02:18.8]} 20. Qe1 {[%clk 0:02:20.3]} 20... Kg8 {[%clk
0:02:18]} 21. Bf4 {[%clk 0:02:20]} 21... Kh7 {[%clk 0:02:17.2]} 22. a4 {[%clk
0:02:09.3]} 22... Rhd8 {[%clk 0:02:14.3]} 23. Rc5 {[%clk 0:01:59]} 23... Qa6
{[%clk 0:02:06.9]} 24. a5 {[%clk 0:01:55.5]} 24... Re8 {[%clk 0:02:06.9]} 25.
Re5 {[%clk 0:01:54.5]} 25... Rxe5 {[%clk 0:02:02.7]} 26. Qxe5 {[%clk 0:01:56.4]}
26... Qc4 {[%clk 0:02:01]} 27. Qe3 {[%clk 0:01:47.2]} 27... Rd8 {[%clk
0:01:52.4]} 28. Rb1 {[%clk 0:01:46.9]} 28... Qa2 {[%clk 0:01:33.8]} 29. Rxb7
{[%clk 0:01:46.4]} 29... Qxc2 {[%clk 0:01:32.7]} 30. Rxa7 {[%clk 0:01:46.6]}
30... Qd1+ {[%clk 0:01:33.7]} 31. Kf2 {[%clk 0:01:47.3]} 31... c5 {[%clk
0:01:28.1]} 32. Be5 {[%clk 0:01:05.4]} 32... Qh1 {[%clk 0:01:09.2]} 33. Qf4
{[%clk 0:01:00.2]} 33... cxd4 {[%clk 0:01:09.3]} 34. Bxd4 {[%clk 0:00:55.8]}
34... Re8 {[%clk 0:01:04.9]} 35. Be3 {[%clk 0:00:38.5]} 35... Re4 {[%clk
0:01:00.8]} 36. Qf3 {[%clk 0:00:29.9]} 36... Qxh4+ {[%clk 0:01:00.8]} 37. Kf1
{[%clk 0:00:28.5]} 37... f4 {[%clk 0:00:58.3]} 38. Bf2 {[%clk 0:00:28.5]} 38...
Qxg5 {[%clk 0:00:59.3]} 39. Rxf7 {[%clk 0:00:25.7]} 39... Qb5+ {[%clk 0:00:50]}
40. Kg2 {[%clk 0:00:17.8]} 40... Qg5+ {[%clk 0:00:33.4]} 41. Kf1 {[%clk
0:00:18.4]} 41... Ra4 {[%clk 0:00:31.8]} 42. Ra7 {[%clk 0:00:12]} 42... Qb5+
{[%clk 0:00:31.1]} 43. Kg1 {[%clk 0:00:11.8]} 43... Qb1+ {[%clk 0:00:31.1]} 44.
Kh2 {[%clk 0:00:12.8]} 44... Ra2 {[%clk 0:00:23.5]} 45. Qxf4 {[%clk 0:00:10.6]}
45... Qf1 {[%clk 0:00:14.7]} 46. Kg3 {[%clk 0:00:08.9]} 46... Qd3+ {[%clk
0:00:13.1]} 47. Kh4 {[%clk 0:00:08.2]} 47... Rxf2 {[%clk 0:00:08.2]} 48. Qxf2
{[%clk 0:00:09.1]} 48... Qe4+ {[%clk 0:00:08.7]} 49. Kg3 {[%clk 0:00:10.5]}
49... Qg4+ {[%clk 0:00:09.9]} 50. Kh2 {[%clk 0:00:11.9]} 50... Be4 {[%clk
0:00:10.4]} 51. Re7 {[%clk 0:00:10.3]} 51... Bf5 {[%clk 0:00:06.4]} 52. Qd4
{[%clk 0:00:08.3]} 52... Qh3+ {[%clk 0:00:06.7]} 53. Kg1 {[%clk 0:00:09.7]}
53... Qg3+ {[%clk 0:00:07.9]} 54. Kf1 {[%clk 0:00:10.5]} 54... Bd3+ {[%clk
0:00:09.1]} 55. Re2 {[%clk 0:00:11.6]} 55... Qf3+ {[%clk 0:00:09.1]} 56. Kg1
{[%clk 0:00:11.8]} 56... Qxe2 {[%clk 0:00:09.2]} 57. Qc5 {[%clk 0:00:12.2]}
57... Qf1+ {[%clk 0:00:10.1]} 58. Kh2 {[%clk 0:00:13.2]} 58... Qf4+ {[%clk
0:00:11.2]} 59. Kg2 {[%clk 0:00:14.1]} 59... Be4+ {[%clk 0:00:12.1]} 60. Kg1
{[%clk 0:00:15.5]} 60... Qg3+ {[%clk 0:00:13.2]} 61. Kf1 {[%clk 0:00:16.2]}
61... Bd3# {[%clk 0:00:14.9]} 0-1